bitfinex/quotes_BTCUSD_20250114
["timestamp","ask_amount","ask_price","bid_price","bid_amount"]
[1736874809209,0.61455384,96149.0,96103.0,0.20266623]
[1736874809210,0.208077,96118.0,96103.0,0.20266623]
[1736874809411,0.2352447,96118.0,96117.0,0.00014913]
[1736874809619,0.214437,96118.0,96117.0,0.00014913]
[1736874810045,0.208063,96125.0,96117.0,0.00014913]
[1736874810397,0.00636,96126.0,96118.0,0.0817]
[1736874810811,0.10422692,96145.0,96119.0,0.0452]
[1736874811011,0.208034,96138.0,96120.0,0.08274029]
[1736874811216,0.208028,96141.0,96120.0,0.1869672]
[1736874811417,0.002,96125.0,96124.0,0.15]
[1736874811592,0.002,96125.0,96124.0,0.38216709]
[1736874811809,0.00636,96159.0,96143.0,0.1269]
[1736874812213,0.207997,96156.0,96143.0,0.1269]
[1736874813015,0.005,96145.0,96143.0,0.1269]
[1736874813499,0.207997,96156.0,96143.0,0.1269]
[1736874813911,0.208997,96156.0,96143.0,0.1269]
[1736874814433,0.208997,96156.0,96143.0,0.1299]
[1736874814632,0.208997,96156.0,96143.0,0.14054062]
[1736874815056,0.208997,96156.0,96143.0,0.13754062]
[1736874815249,0.209997,96156.0,96143.0,0.13754062]
[1736874815865,0.208007,96151.0,96143.0,0.1269]
[1736874816081,0.208008,96150.0,96143.0,0.1269]
[1736874816276,0.208017,96146.0,96143.0,0.1269]
[1736874816476,0.416034,96146.0,96143.0,0.1269]
[1736874816676,0.00636,96149.0,96143.0,0.1269]
[1736874817068,0.208012,96148.0,96143.0,0.1269]
[1736874817475,0.208006,96151.0,96143.0,0.1299]
[1736874817910,0.00636,96153.0,96143.0,0.1299]
[1736874817911,0.208008,96150.0,96143.0,0.1299]
[1736874818290,0.208003,96152.0,96143.0,0.1269]
[1736874818719,0.208003,96152.0,96143.0,0.1289]
[1736874818888,0.208003,96152.0,96143.0,0.1269]
[1736874819416,0.207997,96155.0,96143.0,0.1269]
[1736874819611,0.001,96151.0,96143.0,0.1269]
[1736874820036,0.207997,96155.0,96143.0,0.1269]
[1736874820344,0.207995,96156.0,96143.0,0.1269]
[1736874820536,0.001,96152.0,96143.0,0.1269]
[1736874820912,0.2088488,96156.0,96143.0,0.1279]
[1736874821132,0.2088488,96156.0,96143.0,0.1269]
[1736874821494,0.001,96155.0,96143.0,0.1269]
[1736874822264,0.001,96155.0,96144.0,0.208021]
[1736874822514,0.0018538,96156.0,96145.0,0.15]
[1736874822695,0.0018538,96156.0,96154.0,0.0817]
[1736874823021,0.0028538,96156.0,96155.0,0.58912392]
[1736874823387,0.0018538,96156.0,96155.0,0.58912392]
[1736874823829,0.0028538,96156.0,96155.0,0.58912392]
[1736874824008,0.0018538,96156.0,96155.0,0.58912392]
[1736874824164,0.0008538,96156.0,96155.0,0.58912392]
[1736874824568,0.0008538,96156.0,96155.0,0.59212392]
[1736874825366,0.0008538,96156.0,96155.0,0.60012392]
[1736874825997,0.2087766,96190.0,96155.0,0.60012392]
[1736874826195,0.00014902,96180.0,96178.0,0.1241]
[1736874826785,0.00014902,96180.0,96179.0,0.357945]
[1736874827006,0.00014902,96180.0,96179.0,0.46217192]
[1736874827403,0.00114902,96180.0,96179.0,0.46217192]
[1736874827608,0.00014902,96180.0,96179.0,0.46217192]
[1736874828015,0.00014902,96180.0,96179.0,0.46617192]
[1736874828418,0.00014902,96180.0,96179.0,0.46217192]
[1736874828734,0.00014902,96180.0,96179.0,0.54897192]
[1736874828934,0.00014902,96180.0,96179.0,0.54097192]
[1736874829137,0.00014902,96180.0,96179.0,0.55261001]
[1736874829669,0.00014902,96180.0,96179.0,0.55161001]
[1736874829882,0.00014902,96180.0,96179.0,0.55361001]
[1736874830497,0.00014902,96180.0,96179.0,0.55961001]
[1736874831330,0.20477092,96194.0,96179.0,0.55361001]
[1736874831626,0.20477092,96194.0,96179.0,0.56061001]
[1736874831824,0.20477092,96194.0,96179.0,0.24843809]
[1736874832027,0.207919,96191.0,96179.0,0.23943809]
[1736874832211,0.207919,96191.0,96181.0,0.15]
[1736874832615,0.207908,96196.0,96181.0,0.15]
[1736874833046,0.207908,96196.0,96183.0,0.15]
[1736874833691,0.00049691,96198.0,96194.0,0.207911]
[1736874833914,0.0008526,96214.0,96210.0,0.207876]
[1736874834120,0.0008526,96214.0,96212.0,0.15]
[1736874834266,0.00100158,96214.0,96212.0,0.357874]
[1736874834475,0.00100158,96214.0,96213.0,0.25526619]
[1736874834673,0.00100158,96214.0,96213.0,0.25422692]
[1736874836863,0.00100158,96214.0,96213.0,0.25722692]
[1736874837674,0.00100158,96214.0,96213.0,0.26622692]
[1736874840150,0.00100158,96214.0,96213.0,0.25422692]
[1736874840318,0.00100158,96214.0,96213.0,0.25822692]
[1736874840500,0.00100158,96214.0,96213.0,0.26722692]
[1736874842261,0.00100158,96214.0,96213.0,13.26722692]
[1736874844982,0.00100158,96214.0,96213.0,14.28221292]
[1736874845168,0.00100158,96214.0,96213.0,13.88109292]
[1736874845475,0.00100158,96214.0,96213.0,13.64178492]
[1736874845677,0.00100158,96214.0,96213.0,13.63778492]
[1736874845880,0.00100158,96214.0,96213.0,13.60071392]
[1736874846044,0.00100158,96214.0,96213.0,13.44832692]
[1736874846239,0.00100158,96214.0,96213.0,13.55632492]
[1736874846852,0.00100158,96214.0,96213.0,13.57932492]
[1736874847220,0.00026778,96238.0,96216.0,0.15]
[1736874847420,0.00026778,96238.0,96233.0,0.207827]
[1736874847664,0.00026778,96238.0,96233.0,0.31205392]
[1736874848415,0.00026778,96238.0,96229.0,0.207837]
[1736874848416,0.00026778,96238.0,96225.0,0.15]
[1736874848624,0.00026778,96238.0,96233.0,0.002]
[1736874848796,0.00026778,96238.0,96235.0,0.0473]
[1736874849484,0.00026778,96238.0,96237.0,0.15]
[1736874849658,0.00026778,96238.0,96237.0,0.25526588]
[1736874849883,0.00026778,96238.0,96237.0,0.25422692]
[1736874851108,0.00026778,96238.0,96237.0,0.27722692]
[1736874851518,0.00026778,96238.0,96237.0,0.26453692]
[1736874851809,0.00026778,96238.0,96237.0,0.002]
[1736874852264,0.00026778,96238.0,96237.0,0.10622692]
[1736874852486,0.00026778,96238.0,96237.0,0.002]
[1736874852621,0.00026778,96238.0,96237.0,0.003]
[1736874853236,0.00026778,96238.0,96234.0,0.207825]
[1736874853440,0.00026778,96238.0,96237.0,0.001]
[1736874853642,0.00026778,96238.0,96237.0,0.006]
[1736874853841,0.00026778,96238.0,96237.0,0.001]
[1736874854249,0.00026778,96238.0,96237.0,0.006]
[1736874854626,0.00026778,96238.0,96237.0,0.005]
[1736874855841,0.25348964,96238.0,96237.0,0.005]
[1736874856018,0.36311201,96238.0,96237.0,0.001]
[1736874856154,0.38611201,96238.0,96237.0,0.001]
[1736874856388,0.831348,96229.0,96202.0,0.01057903]
[1736874856597,0.02076818,96225.0,96200.0,0.18298633]
[1736874856888,0.207869,96214.0,96200.0,0.18298633]
[1736874857149,0.207869,96214.0,96196.0,0.079]
[1736874857647,0.31209592,96214.0,96188.0,0.0453]
[1736874858667,0.31209592,96214.0,96213.0,13.001]
[1736874858811,0.32274692,96214.0,96213.0,13.0]
[1736874859010,0.32374692,96214.0,96213.0,12.98699998]
[1736874859219,0.208869,96214.0,96213.0,12.98699998]
[1736874859461,0.215229,96214.0,96213.0,12.98699998]
[1736874860256,0.208869,96214.0,96213.0,12.98699998]
[1736874860434,0.215229,96214.0,96213.0,12.98699998]
[1736874860943,0.23152503,96214.0,96213.0,12.98699998]
[1736874861480,0.215229,96214.0,96213.0,12.98699998]
[1736874862037,0.208869,96214.0,96213.0,12.98699998]
[1736874862244,0.215229,96214.0,96213.0,12.98699998]
[1736874863869,0.215229,96214.0,96213.0,12.97399996]
[1736874867020,0.23152519,96214.0,96213.0,12.97399996]
[1736874867827,0.40047713,96214.0,96213.0,12.97399996]
[1736874868470,0.38418094,96214.0,96213.0,12.97399996]
[1736874868889,0.31309592,96214.0,96213.0,12.97399996]
[1736874869112,0.31953592,96214.0,96213.0,12.96099994]
[1736874870863,0.33583252,96214.0,96213.0,12.96099994]
[1736874871061,0.53583252,96214.0,96213.0,12.96099994]
[1736874871857,0.72463252,96214.0,96213.0,12.96099994]
[1736874872105,0.82885944,96214.0,96213.0,12.7954733]
[1736874872353,0.81656284,96214.0,96213.0,12.7964733]
[1736874872798,0.81256284,96214.0,96213.0,12.7954733]
[1736874873020,0.81256284,96214.0,96213.0,12.6494701]
[1736874873191,0.81256284,96214.0,96213.0,12.6284921]
[1736874873770,0.81456284,96214.0,96213.0,12.6284921]
[1736874873972,0.81456284,96214.0,96213.0,12.51155708]
[1736874874179,0.71533592,96214.0,96213.0,12.51255708]
[1736874874376,0.70833592,96214.0,96213.0,12.51155708]
[1736874874584,0.71233592,96214.0,96213.0,12.51155708]
[1736874874766,0.72133592,96214.0,96213.0,12.51255708]
[1736874875388,0.73763419,96214.0,96213.0,12.51255708]
[1736874875589,0.84186111,96214.0,96213.0,12.51255708]
[1736874876113,0.83542111,96214.0,96213.0,12.51255708]
[1736874876320,0.84186111,96214.0,96213.0,12.28839708]
[1736874879973,0.84186111,96214.0,96213.0,12.27539706]
[1736874880340,0.83542111,96214.0,96213.0,12.27539706]
[1736874880545,0.59783419,96214.0,96213.0,12.27539706]
[1736874880746,0.59783419,96214.0,96213.0,12.27718836]
[1736874880747,0.68153592,96214.0,96213.0,12.27718836]
[1736874880947,0.58238892,96214.0,96213.0,12.27718836]
[1736874881140,0.68238892,96214.0,96213.0,12.25069229]
[1736874881469,0.58238892,96214.0,96213.0,12.25069229]
[1736874881701,0.68238892,96214.0,96213.0,12.25069229]
[1736874881897,0.57594892,96214.0,96213.0,12.25069229]
[1736874882102,0.67594892,96214.0,96213.0,12.25069229]
[1736874882340,0.58238892,96214.0,96213.0,12.25069229]
[1736874882524,0.68238892,96214.0,96213.0,12.25069229]
[1736874883947,0.68238892,96214.0,96213.0,12.23769227]
[1736874884144,0.78661584,96214.0,96213.0,12.23769227]
[1736874884993,0.80291372,96214.0,96213.0,12.23769227]
[1736874885335,0.80961584,96214.0,96213.0,12.1151489]
[1736874885736,0.80961584,96214.0,96213.0,12.07963918]
[1736874886021,0.80961584,96214.0,96213.0,11.99649118]
[1736874886152,0.80961584,96214.0,96213.0,11.97570418]
[1736874886774,0.80961584,96214.0,96213.0,11.93501018]
[1736874887095,0.82641584,96214.0,96213.0,11.60437819]
[1736874887297,0.82841584,96214.0,96213.0,11.60437819]
[1736874887494,0.82841584,96214.0,96213.0,11.57030393]
[1736874887990,0.82841584,96214.0,96213.0,11.52872993]
[1736874887991,0.82441584,96214.0,96213.0,11.52872993]
[1736874888162,0.81541584,96214.0,96213.0,11.46536893]
[1736874888365,0.82441584,96214.0,96213.0,11.46736893]
[1736874888728,0.82241584,96214.0,96213.0,11.46636893]
[1736874888933,0.82241584,96214.0,96213.0,11.34943391]
[1736874889919,0.69717584,96214.0,96213.0,11.26628591]
[1736874890326,0.81161584,96214.0,96213.0,11.26728591]
[1736874891174,0.80517584,96214.0,96213.0,11.26728591]
[1736874891341,0.55094892,96214.0,96213.0,11.26728591]
[1736874891545,0.55738892,96214.0,96213.0,11.26728591]
[1736874891747,0.70738892,96214.0,96213.0,11.26728591]
[1736874892152,0.57794892,96214.0,96213.0,11.26728591]
[1736874892357,0.68438892,96214.0,96213.0,11.26728591]
[1736874892769,0.43438892,96214.0,96213.0,11.26728591]
[1736874893193,0.42738892,96214.0,96213.0,11.26628591]
[1736874893604,0.42838892,96214.0,96213.0,11.26628591]
[1736874893893,0.42638892,96214.0,96213.0,11.26628591]
[1736874894135,0.62980031,96214.0,96213.0,11.25428589]
[1736874894252,0.77280031,96214.0,96213.0,11.25328589]
[1736874894652,0.77780031,96214.0,96213.0,11.25328589]
[1736874894854,0.76880031,96214.0,96213.0,11.25228589]
[1736874895052,0.76380031,96214.0,96213.0,11.25228589]
[1736874895253,0.77280031,96214.0,96213.0,11.25328589]
[1736874895521,0.81209771,96214.0,96213.0,11.21171189]
[1736874895719,0.81709771,96214.0,96213.0,11.14935089]
[1736874895921,0.81709771,96214.0,96213.0,11.08698989]
[1736874896095,0.81709771,96214.0,96213.0,11.04541589]
[1736874896505,0.79180031,96214.0,96213.0,11.04441589]
[1736874896739,0.79180031,96214.0,96213.0,11.03381409]
[1736874897038,0.80080031,96214.0,96213.0,11.03481409]
[1736874897333,0.79180031,96214.0,96213.0,11.03381409]
[1736874897639,0.80080031,96214.0,96213.0,11.03481409]
[1736874897786,0.80080031,96214.0,96213.0,10.95066609]
[1736874897787,0.79180031,96214.0,96213.0,10.95066609]
[1736874898160,0.79580031,96214.0,96213.0,10.84773109]
[1736874898654,0.80280031,96214.0,96213.0,10.84873109]
[1736874898794,0.80280031,96214.0,96213.0,10.82794409]
[1736874898998,0.80280031,96214.0,96213.0,10.79415707]
[1736874899197,0.79580031,96214.0,96213.0,10.79315707]
[1736874899440,0.80280031,96214.0,96213.0,10.79415707]
[1736874899642,0.81009872,96214.0,96213.0,10.79315707]
[1736874900159,0.81909872,96214.0,96213.0,10.79315707]
[1736874900469,0.55160733,96214.0,96213.0,10.73079607]
[1736874900844,0.70830892,96214.0,96213.0,10.68922207]
[1736874901029,0.70830892,96214.0,96213.0,10.66843507]
[1736874901227,0.80353584,96214.0,96213.0,10.66843507]
[1736874901626,0.80553584,96214.0,96213.0,10.66190265]
[1736874901836,0.80553584,96214.0,96213.0,10.45637303]
[1736874902016,0.80953584,96214.0,96213.0,10.42405796]
[1736874902370,0.82233584,96214.0,96213.0,9.96788609]
[1736874902577,0.82233584,96214.0,96213.0,9.93523609]
[1736874902726,0.82933584,96214.0,96213.0,9.88296676]
[1736874902936,0.82933584,96214.0,96213.0,9.84139276]
[1736874903158,0.82033584,96214.0,96213.0,9.7562602]
[1736874903359,0.82233584,96214.0,96213.0,9.7452602]
[1736874903586,0.83133584,96214.0,96213.0,9.7462602]
[1736874903791,0.82233584,96214.0,96213.0,9.7122602]
[1736874903982,0.82233584,96214.0,96213.0,9.50226498]
[1736874904310,0.83133584,96214.0,96213.0,9.47961627]
[1736874904686,0.83133584,96214.0,96213.0,9.40532124]
[1736874904885,0.83133584,96214.0,96213.0,9.24107124]
[1736874905093,0.83133584,96214.0,96213.0,9.22028424]
[1736874905670,0.83133584,96214.0,96213.0,9.1897073]
[1736874906022,0.84763557,96214.0,96213.0,9.1015593]
[1736874906212,0.84763557,96214.0,96213.0,9.0807723]
[1736874906733,0.84763557,96214.0,96213.0,9.0639923]
[1736874906954,0.84763557,96214.0,96213.0,9.0432053]
[1736874907160,0.84763557,96214.0,96213.0,9.0016313]
[1736874907518,0.84763557,96214.0,96213.0,8.9444473]
[1736874907722,0.868816,96214.0,96213.0,8.9444473]
[1736874907941,0.868816,96214.0,96213.0,8.9236603]
[1736874908105,0.868816,96214.0,96213.0,8.8820863]
[1736874908737,0.868816,96214.0,96213.0,8.8405123]
[1736874908959,0.85251627,96214.0,96213.0,8.8405123]
[1736874909158,0.84911627,96214.0,96213.0,8.8197253]
[1736874909353,0.84911627,96214.0,96213.0,8.7989383]
[1736874909559,0.84911627,96214.0,96213.0,8.72357728]
[1736874910686,0.84911627,96214.0,96213.0,8.68200328]
[1736874911002,0.84911627,96214.0,96213.0,8.66121628]
[1736874911205,0.84911627,96214.0,96213.0,8.59885528]
[1736874911712,0.84911627,96214.0,96213.0,8.57395828]
[1736874912034,0.8654159,96214.0,96213.0,8.55317128]
[1736874912355,0.8654159,96214.0,96213.0,8.47002328]
[1736874912651,0.84275627,96214.0,96213.0,8.47002328]
[1736874912863,0.84911627,96214.0,96213.0,8.38555376]
[1736874913509,0.84911627,96214.0,96213.0,8.30240576]
[1736874913917,0.84911627,96214.0,96213.0,8.24783174]
[1736874914118,0.84911627,96214.0,96213.0,8.22704474]
[1736874914343,0.84911627,96214.0,96213.0,8.02169074]
[1736874914563,0.84911627,96214.0,96213.0,8.00107074]
[1736874915389,0.84911627,96214.0,96213.0,7.93870974]
[1736874915573,0.84911627,96214.0,96213.0,7.89713574]
[1736874915752,0.85935836,96214.0,96213.0,7.89713574]
[1736874915986,0.87565929,96214.0,96213.0,7.83477474]
[1736874916388,0.87565929,96214.0,96213.0,7.66070747]
[1736874916598,1.13925929,96214.0,96213.0,7.58102222]
[1736874916957,1.13925929,96214.0,96213.0,7.56023522]
[1736874917146,1.13925929,96214.0,96213.0,7.53944822]
[1736874917353,1.13925929,96214.0,96213.0,7.47508722]
[1736874917354,1.12125929,96214.0,96213.0,7.47508722]
[1736874917588,1.12125929,96214.0,96213.0,7.39964903]
[1736874917799,1.12125929,96214.0,96213.0,7.40164903]
[1736874917800,1.13925929,96214.0,96213.0,7.40164903]
[1736874918002,0.85885929,96214.0,96213.0,7.29771403]
[1736874918250,0.82949929,96214.0,96213.0,7.29771403]
[1736874918442,0.82949929,96214.0,96213.0,7.37421403]
[1736874918443,0.44415101,96214.0,96213.0,7.37421403]
[1736874918648,0.33390892,96214.0,96213.0,7.37421403]
[1736874918874,0.43390892,96214.0,96213.0,7.37421403]
[1736874919055,0.43390892,96214.0,96213.0,7.36121401]
[1736874919372,0.42490892,96214.0,96213.0,7.36021401]
[1736874919785,0.41854892,96214.0,96213.0,7.36021401]
[1736874920024,0.42490892,96214.0,96213.0,7.36021401]
[1736874920191,0.41590892,96214.0,96213.0,7.35921401]
[1736874920403,0.42013584,96214.0,96213.0,7.35921401]
[1736874920600,0.55213584,96214.0,96213.0,7.35921401]
[1736874920806,0.81113584,96214.0,96213.0,7.35921401]
[1736874921024,0.80213584,96214.0,96213.0,7.35921401]
[1736874921174,0.79313584,96214.0,96213.0,7.35921401]
[1736874921364,0.80213584,96214.0,96213.0,7.35921401]
[1736874921571,0.80513584,96214.0,96213.0,7.35921401]
[1736874922608,0.82143417,96214.0,96213.0,7.35921401]
[1736874922805,0.82143417,96214.0,96213.0,7.17877901]
[1736874923008,0.80513584,96214.0,96213.0,7.11641801]
[1736874923724,0.80513584,96214.0,96213.0,7.07643516]
[1736874923905,0.80213584,96214.0,96213.0,7.01407416]
[1736874924105,0.80113584,96214.0,96213.0,5.11395918]
[1736874924327,2.00655484,96214.0,96213.0,4.85834068]
[1736874924525,2.24569084,96214.0,96213.0,4.21055909]
[1736874924741,2.22869084,96214.0,96213.0,4.20955909]
[1736874924960,2.22869084,96214.0,96213.0,4.05993873]
[1736874925118,2.24669084,96214.0,96213.0,4.0532984]
[1736874925327,2.26011742,96214.0,96213.0,3.6970084]
[1736874925525,2.25111742,96214.0,96213.0,3.4845084]
[1736874925838,2.26011742,96214.0,96213.0,3.4845084]
[1736874926008,2.27641819,96214.0,96213.0,3.3178594]
[1736874926713,2.25399161,96214.0,96213.0,3.3178594]
[1736874926923,2.26299161,96214.0,96213.0,3.2970724]
[1736874927137,2.25399161,96214.0,96213.0,3.2347114]
[1736874927338,2.25399161,96214.0,96213.0,3.2139244]
[1736874927698,2.26299161,96214.0,96213.0,3.2139244]
[1736874927896,2.16789061,96214.0,96213.0,3.1307764]
[1736874928119,0.81843661,96214.0,96213.0,3.1099894]
[1736874928319,0.80943661,96214.0,96213.0,3.1099894]
[1736874928497,1.00597461,96214.0,96213.0,3.1099894]
[1736874928896,1.00597461,96214.0,96213.0,3.05541538]
[1736874929105,1.32997498,96214.0,96213.0,2.99305438]
[1736874929305,1.28832198,96214.0,96213.0,2.99305438]
[1736874929801,0.97332161,96214.0,96213.0,2.95148038]
[1736874930021,0.96432161,96214.0,96213.0,2.86736038]
[1736874930238,0.97232161,96214.0,96213.0,2.82936038]
[1736874930683,0.96332161,96214.0,96213.0,2.82936038]
[1736874930910,0.97232161,96214.0,96213.0,2.78778638]
[1736874931297,0.95532161,96214.0,96213.0,2.72542538]
[1736874931528,0.95532161,96214.0,96213.0,2.41512432]
[1736874931758,0.96432161,96214.0,96213.0,2.2875709]
[1736874931978,0.94802084,96214.0,96213.0,2.25427626]
[1736874932196,0.95602084,96214.0,96213.0,2.14932451]
[1736874932894,0.95602084,96214.0,96213.0,1.86109496]
[1736874933090,0.95602084,96214.0,96213.0,1.72229713]
[1736874933327,0.95602084,96214.0,96213.0,1.68972273]
[1736874933722,0.95602084,96214.0,96213.0,1.64809293]
[1736874933919,0.95602084,96214.0,96213.0,1.58546793]
[1736874934126,0.81013584,96214.0,96213.0,1.4574769]
[1736874934331,0.81013584,96214.0,96213.0,1.45292105]
[1736874934482,0.81013584,96214.0,96213.0,1.41886541]
[1736874934689,2.61538484,96214.0,96213.0,1.41302341]
[1736874935038,2.61538484,96214.0,96213.0,1.37144941]
[1736874935195,2.63168654,96214.0,96213.0,1.30908841]
[1736874935605,2.67092504,96214.0,96213.0,0.12468748]
[1736874935965,2.67092504,96214.0,96163.0,0.0453]
[1736874935966,0.2,96164.0,96163.0,0.0453]
[1736874936216,0.62338436,96164.0,96163.0,0.0453]
[1736874936372,0.35,96157.0,96156.0,0.00228926]
[1736874936583,0.373,96157.0,96156.0,0.00228926]
[1736874937023,0.580993,96157.0,96156.0,0.00228926]
[1736874937221,0.70554959,96157.0,96156.0,0.00228926]
[1736874937414,0.73377075,96157.0,96156.0,0.00228926]
[1736874937621,0.73877075,96157.0,96156.0,0.00228926]
[1736874938175,0.73377075,96157.0,96156.0,0.00228926]
[1736874938393,0.74777075,96157.0,96156.0,0.00228926]
[1736874938999,0.373,96154.0,96153.0,2.6e-07]
[1736874939185,0.558021,96144.0,96143.0,0.00181569]
[1736874939478,0.68524792,96144.0,96143.0,0.00196471]
[1736874939920,0.35,96141.0,96140.0,0.06836469]
[1736874940124,0.47722692,96141.0,96140.0,0.06836469]
[1736874941499,0.48122692,96141.0,96140.0,0.06836469]
[1736874941660,0.58545384,96141.0,96140.0,0.06836469]
[1736874942661,0.60081384,96141.0,96140.0,0.06836469]
[1736874943300,0.74051105,96141.0,96140.0,0.06836469]
[1736874943901,0.60081384,96141.0,96140.0,0.06836469]
[1736874944098,0.60081384,96141.0,96140.0,0.05536467]
[1736874944542,0.55804,96135.0,96134.0,0.0453]
[1736874944778,0.72026692,96135.0,96134.0,0.0453]
[1736874945183,0.69726692,96135.0,96134.0,0.0453]
[1736874945796,0.72026692,96135.0,96134.0,0.0453]
[1736874946003,0.72926692,96135.0,96134.0,0.0453]
[1736874946207,0.73226692,96135.0,96134.0,0.0453]
[1736874947169,0.1,96126.0,96094.0,0.01061331]
[1736874947371,0.69633328,96126.0,96125.0,0.00194211]
[1736874947570,0.69528692,96126.0,96125.0,0.00194211]
[1736874948141,0.69280692,96126.0,96125.0,0.00194211]
[1736874949108,0.69280692,96126.0,96109.0,0.07312343]
[1736874949109,0.34752,96110.0,96109.0,0.07312343]
[1736874949297,0.45810692,96110.0,96109.0,0.07312343]
[1736874949496,0.51791666,96110.0,96109.0,0.07312343]
[1736874950414,0.41791666,96110.0,96109.0,0.07312343]
[1736874950615,0.35174692,96110.0,96109.0,0.07312343]
[1736874950824,0.11258692,96110.0,96109.0,0.07312343]
[1736874951031,0.21010692,96110.0,96109.0,0.07312343]
[1736874951244,0.36010692,96110.0,96109.0,0.07312343]
[1736874951450,0.36910692,96110.0,96109.0,0.07312343]
[1736874952664,0.57720092,96110.0,96109.0,0.07312343]
[1736874952889,0.66572951,96110.0,96109.0,0.07312343]
[1736874953617,0.45763551,96110.0,96109.0,0.07312343]
[1736874954025,0.36274692,96110.0,96109.0,0.06012341]
[1736874954239,0.208078,96118.0,96091.0,0.0004]
[1736874954240,0.09931063,96142.0,96116.0,0.01535308]
[1736874954458,0.10527328,96141.0,96119.0,0.0482]
[1736874954668,0.08464692,96137.0,96119.0,0.0482]
[1736874954833,0.08464692,96130.0,96119.0,0.0482]
[1736874955064,0.11163328,96129.0,96119.0,0.0482]
[1736874955615,0.15,96128.0,96119.0,0.0482]
[1736874955823,0.10527328,96127.0,96119.0,0.0482]
[1736874956012,0.15,96126.0,96119.0,0.0482]
[1736874956184,0.15,96124.0,96119.0,0.0482]
[1736874956788,0.009,96129.0,96121.0,0.208071]
[1736874957002,0.00104636,96155.0,96139.0,0.0026]
[1736874957217,0.10422692,96154.0,96140.0,0.0806]
[1736874957632,0.15104636,96153.0,96140.0,0.0806]
[1736874958064,0.15,96151.0,96140.0,0.0806]
[1736874958267,0.10527328,96150.0,96140.0,0.0806]
[1736874958913,0.17600092,96149.0,96140.0,0.0806]
[1736874959093,0.15,96147.0,96140.0,0.0806]
[1736874959296,0.10527328,96146.0,96140.0,0.0806]
[1736874959959,0.00636,96145.0,96140.0,0.0806]
[1736874960132,0.10422692,96144.0,96140.0,0.0806]
[1736874960708,0.00636,96145.0,96140.0,0.0806]
[1736874960906,0.00636,96143.0,96140.0,0.0806]
[1736874961112,0.11058692,96143.0,96140.0,0.0806]
[1736874961224,0.10422692,96142.0,96140.0,0.0806]
[1736874963369,0.00636,96143.0,96140.0,0.0806]
[1736874964830,0.10422692,96142.0,96140.0,0.0806]
[1736874965561,0.10422692,96142.0,96140.0,0.0826]
[1736874965803,0.10422692,96142.0,96140.0,0.0806]
[1736874965952,0.10527328,96142.0,96140.0,0.0806]
[1736874966173,0.00636,96141.0,96140.0,0.0806]
[1736874967764,0.00736,96141.0,96140.0,0.0806]
[1736874968134,0.00736,96141.0,96140.0,0.1036]
[1736874969260,0.00736,96141.0,96140.0,0.09059998]
[1736874969875,0.001,96141.0,96140.0,0.09059998]
[1736874970104,0.00736,96141.0,96140.0,0.09059998]
[1736874970811,0.001,96141.0,96140.0,0.09059998]
[1736874970987,0.00736,96141.0,96140.0,0.09059998]
[1736874974184,0.00736,96141.0,96140.0,0.07759996]
[1736874975160,0.001,96141.0,96140.0,0.07759996]
[1736874975368,0.00736,96141.0,96140.0,0.07759996]
[1736874979101,0.00736,96141.0,96140.0,0.06459994]
[1736874979777,0.001,96141.0,96140.0,0.06564001]
[1736874980017,0.001,96141.0,96140.0,0.06459994]
[1736874980725,0.001,96141.0,96140.0,0.38311998]
[1736874980920,0.0008542,96146.0,96145.0,0.44427208]
[1736874982326,0.00012896,96153.0,96152.0,0.34825608]
[1736874982782,0.00012896,96153.0,96152.0,0.43960508]
[1736874983514,0.30086663,96193.0,96174.0,0.207955]
[1736874983515,0.00636,96180.0,96174.0,0.207955]
[1736874983722,0.00636,96180.0,96176.0,0.023]
[1736874983929,0.00636,96180.0,96177.0,0.00103959]
[1736874984142,0.00636,96180.0,96179.0,0.1]
[1736874984543,0.00636,96180.0,96179.0,0.10103961]
[1736874984744,0.00636,96180.0,96179.0,0.1]
[1736874985189,0.00636,96180.0,96179.0,0.17710899]
[1736874985391,0.00636,96193.0,96188.0,0.207924]
[1736874985596,0.00049732,96201.0,96190.0,0.023]
[1736874985807,0.00049732,96201.0,96184.0,0.00103959]
[1736874985808,0.00049732,96201.0,96196.0,0.023]
[1736874986015,0.00049732,96201.0,96200.0,0.2079]
[1736874986232,0.00049732,96201.0,96200.0,0.33616621]
[1736874986448,0.00049732,96201.0,96200.0,0.33512692]
[1736874986983,0.00049732,96201.0,96200.0,0.35594315]
[1736874987202,0.00149732,96201.0,96200.0,0.25171623]
[1736874987409,0.00149732,96201.0,96200.0,0.27104213]
[1736874987888,0.00249732,96201.0,96200.0,0.04981623]
[1736874988251,0.00149732,96201.0,96200.0,0.04381623]
[1736874988575,0.00149732,96201.0,96200.0,0.029]
[1736874989010,0.00149732,96201.0,96200.0,0.023]
[1736874989426,0.00049732,96201.0,96200.0,0.023]
[1736874990507,0.00049732,96201.0,96200.0,0.07715654]
[1736874990707,0.00049732,96201.0,96200.0,0.07715646]
[1736874990950,0.00149732,96201.0,96200.0,0.18738338]
[1736874991151,0.00049732,96201.0,96200.0,0.34673646]
[1736874991353,0.00049732,96201.0,96200.0,0.34569711]
[1736874991555,0.00049732,96201.0,96200.0,0.34769711]
[1736874991906,0.00049732,96201.0,96200.0,0.42269711]
[1736874992239,0.00149732,96201.0,96200.0,0.44089209]
[1736874992576,0.00049732,96201.0,96200.0,0.43289209]
[1736874992718,0.00149732,96201.0,96200.0,0.44189209]
[1736874993549,0.00249732,96201.0,96200.0,0.44189209]
[1736874993946,0.000853,96214.0,96213.0,0.023]
[1736874994176,0.0010021,96214.0,96213.0,0.023]
[1736874994381,0.0010021,96214.0,96213.0,0.02403924]
[1736874995039,0.0010021,96214.0,96213.0,0.04444475]
[1736874995258,0.0010021,96214.0,96213.0,0.04844475]
[1736874996079,0.0010021,96214.0,96213.0,0.18765859]
[1736874996284,0.0010021,96214.0,96213.0,0.52405442]
[1736874996499,0.00026778,96238.0,96231.0,0.01535308]
[1736874996726,0.00026778,96238.0,96231.0,0.32318608]
[1736874997728,0.00026778,96238.0,96231.0,0.32718608]
[1736874998108,0.00026778,96238.0,96231.0,0.32318608]
[1736874998317,0.0018542,96232.0,96231.0,0.34732569]
[1736874999040,0.0018542,96232.0,96231.0,0.45155261]
[1736874999396,0.0018542,96232.0,96231.0,0.35132569]
[1736875000842,0.0018542,96232.0,96231.0,0.37202642]
[1736875001893,0.0018542,96232.0,96231.0,0.52415334]
[1736875002107,0.0018542,96232.0,96231.0,0.68439611]
[1736875002236,0.00026778,96238.0,96237.0,0.49617308]
[1736875002442,0.00031864,96250.0,96243.0,0.15]
[1736875002644,0.00046763,96250.0,96249.0,0.37314708]
[1736875002910,0.0008534,96276.0,96249.0,0.37314708]